fUSD/lending_fUSD_20240204
["ID","MTS","AMOUNT","RATE_DAILY","PERIOD"]
[313273197,1707064238011,-3121.84166289,0.00029557,4]
[313273199,1707064238022,-5404.69562947,0.00029557,4]
[313273201,1707064238031,-1042.20895903,0.00029557,3]
[313273203,1707064238040,-521.10447952,0.00029557,3]
[313273205,1707064238049,-2039.27,0.00029577,2]
[313273207,1707064238058,-9674.94675906,0.0003,2]
[313273209,1707064238067,-150.0,0.0003,2]
[313273211,1707064238076,-500.0,0.0003,2]
[313273213,1707064238085,-584.86692262,0.0003,2]
[313273216,1707064238095,-2650.39642541,0.0003,4]
[313273218,1707064238104,-155.0,0.0003,2]
[313273220,1707064238113,-311.32327923,0.0003,4]
[313273222,1707064238122,-336.62,0.00030274,2]
[313273224,1707064238131,-263.28,0.00030546,2]
[313273226,1707064238140,-257.45432196,0.00031,4]
[313273227,1707064238149,-2039.27,0.00031221,2]
[313273229,1707064238158,-180.0,0.00031644,2]
[313273231,1707064238167,-26739.7481328,0.000318,2]
[313273233,1707064238176,-159.15980371,0.00031822,2]
[313273235,1707064238185,-336.62,0.00032538,2]
[313273237,1707064238194,-896.52,0.00032769,2]
[313273239,1707064238203,-2039.27,0.00032865,2]
[313273241,1707064238213,-500.0,0.00032877,2]
[313273244,1707064238222,-250.0,0.00033217,2]
[313273245,1707064238232,-457.63,0.00033262,2]
[313273248,1707064238243,-172.46,0.00033287,2]
[313273250,1707064238252,-5347.94962657,0.00033369,4]
[313273252,1707064238261,-5347.94962657,0.0003349,4]
[313273254,1707064238269,-680.44,0.000335,2]
[313273256,1707064238279,-680.44,0.000335,2]
[313273258,1707064238288,-680.44,0.000335,2]
[313273260,1707064238297,-680.44,0.000335,2]
[313273262,1707064238306,-680.44,0.000335,2]
[313273264,1707064238316,-680.44,0.000335,2]
[313273265,1707064238325,-680.44,0.000335,2]
[313273267,1707064238335,-680.44,0.000335,2]
[313273270,1707064238345,-680.44,0.000335,2]
[313273272,1707064238356,-680.44,0.000335,2]
[313273274,1707064238364,-680.44,0.000335,2]
[313273276,1707064238374,-680.44,0.000335,2]
[313273278,1707064238383,-680.44,0.000335,2]
[313273280,1707064238391,-680.44,0.000335,2]
[313273281,1707064238401,-680.44,0.000335,2]
[313273283,1707064238410,-680.44,0.000335,2]
[313273285,1707064238419,-680.44,0.000335,2]
[313273287,1707064238428,-680.44,0.000335,2]
[313273289,1707064238437,-680.44,0.000335,2]
[313273290,1707064238446,-680.44,0.000335,2]
[313273291,1707064238455,-10695.8992531,0.00033658,4]
[313273292,1707064238464,-973.0405636,0.00033667,4]
[313273293,1707064238473,-281.24,0.00033712,2]
[313273294,1707064238481,-765.94522118,0.00034,4]
[313273295,1707064238491,-2039.27,0.00034509,2]
[313273296,1707064238500,-153.29,0.00034549,2]
[313273297,1707064238508,-153.29,0.00034699,2]
[313273298,1707064238518,-336.62,0.00034802,2]
[313273299,1707064238528,-153.29,0.00034849,2]
[313273301,1707064238537,-5347.94962657,0.0003489,6]
[313273303,1707064238546,-8999.04607901,0.000349,4]
[313273305,1707064238555,-359.35200672,0.00034932,2]
[313273307,1707064238564,-178.68,0.00034973,2]
[313273309,1707064238574,-10695.8992531,0.0003499,7]
[313273311,1707064238583,-943.43596546,0.00034999,4]
[313273314,1707064238592,-153.29,0.00034999,2]
[313273316,1707064238601,-390.3945362,0.00035,4]
[313273318,1707064238616,-1786.22,0.00035,5]
[313273319,1707064238625,-221.77404607,0.00035,4]
[313273321,1707064238634,-155.0,0.00035,2]
[313273322,1707064238643,-155.0,0.00035,4]
[313273323,1707064238653,-1782.65,0.00035,5]
[313273324,1707064238663,-155.0,0.00035,2]
[313273325,1707064238672,-1265.82043803,0.00035,4]
[313273326,1707064238682,-3000.0,0.00035,11]
[313273327,1707064238693,-7095.85099765,0.00035,4]
[313273328,1707064238703,-450.12144164,0.00035,4]
[313273329,1707064238713,-38596.15097742,0.00035,4]
[313273330,1707064238724,-166.75660514,0.00035,2]
[313273331,1707064238733,-166.75660514,0.00035,2]
[313273332,1707064238743,-166.75660514,0.00035,2]
[313273333,1707064238752,-166.75660514,0.00035,2]
[313273334,1707064238761,-166.75660514,0.00035,2]
[313273335,1707064238771,-166.75660514,0.00035,2]
[313273336,1707064238781,-166.75660514,0.00035,2]
[313273337,1707064238791,-166.75660514,0.00035,2]
[313273338,1707064238801,-166.75660514,0.00035,2]
[313273339,1707064238809,-166.75660514,0.00035,2]
[313273340,1707064238819,-166.75660514,0.00035,2]
[313273341,1707064238828,-166.75660514,0.00035,2]
[313273342,1707064238837,-166.75660514,0.00035,2]
[313273343,1707064238846,-166.75660514,0.00035,2]
[313273344,1707064238855,-166.75660514,0.00035,2]
[313273345,1707064238865,-3000.0,0.0003501,11]
[313273346,1707064238874,-5347.94962657,0.0003501,7]
[313273347,1707064238885,-5445.117097,0.0003502,11]
[313273348,1707064238895,-1832.04,0.00035025,5]
[313273349,1707064238905,-1833.91,0.0003505,5]
[313273350,1707064238915,-153.29,0.00035149,2]
[313273351,1707064238925,-153.29,0.00035299,2]
[313273352,1707064238934,-153.29,0.00035449,2]
[313273353,1707064238943,-153.29,0.00035599,2]
[313273354,1707064238952,-5347.94962657,0.00035606,8]
[313273355,1707064238961,-4000.0,0.00035616,2]
[313273356,1707064239101,-153.29,0.00035749,2]
[313273357,1707064239111,-153.29,0.000359,2]
[313273358,1707064239121,-299.32441982,0.00036,4]
[313273359,1707064239130,-2639.06,0.00036034,2]
[313273360,1707064239139,-896.52,0.00036046,2]
[313273361,1707064239149,-153.29,0.0003605,2]
[313273362,1707064239158,-153.29,0.000362,2]
[313273363,1707064239167,-695.71370854,0.00036301,30]
[313273364,1707064239176,-153.29,0.0003635,2]
[313273365,1707064239185,-542.2716051,0.0003636,4]
[313273366,1707064239194,-4000.0,0.00036934,2]
[313273367,1707064239203,-10695.8992531,0.0003699,10]
[313273368,1707064239214,-171.87975763,0.00037,5]
[313273369,1707064239223,-680.44,0.00037,3]
[313273370,1707064239232,-680.44,0.00037,3]
[313273371,1707064239241,-680.44,0.00037,3]
[313273372,1707064239250,-680.44,0.00037,3]
[313273373,1707064239259,-680.44,0.00037,3]
[313273374,1707064239268,-680.44,0.00037,3]
[313273375,1707064239278,-680.44,0.00037,3]
[313273376,1707064239286,-680.44,0.00037,3]
[313273377,1707064239296,-680.44,0.00037,3]
[313273378,1707064239305,-680.44,0.00037,3]
[313273379,1707064239315,-680.44,0.00037,3]
[313273380,1707064239324,-680.44,0.00037,3]
[313273381,1707064239333,-680.44,0.00037,3]
[313273382,1707064239342,-680.44,0.00037,3]
[313273383,1707064239351,-680.44,0.00037,3]
[313273384,1707064239361,-680.44,0.00037,3]
[313273385,1707064239370,-680.44,0.00037,3]
[313273386,1707064239378,-680.44,0.00037,3]
[313273387,1707064239388,-680.44,0.00037,3]
[313273388,1707064239397,-680.44,0.00037,3]
[313273389,1707064239406,-4000.0,0.00037,2]
[313273390,1707064239415,-150.0,0.00037061,2]
[313273391,1707064239424,-336.62,0.00037066,2]
[313273392,1707064239433,-38163.0,0.00037325,20]
[313273393,1707064239443,-5347.94962657,0.00037511,10]
[313273394,1707064239452,-6870.64976652,0.00037521,2]
[313273395,1707064239461,-38163.0,0.0003771,20]
[313273396,1707064239470,-150.0,0.00037771,2]
[313273397,1707064239481,-38163.0,0.00038095,20]
[313273398,1707064239489,-4000.0,0.00038252,2]
[313273399,1707064239498,-150.0,0.00038356,2]
[313273400,1707064239508,-38163.0,0.0003848,20]
[313273401,1707064239517,-150.0,0.0003848,2]
[313273402,1707064239526,-105217.498015,0.0003878,3]
[313273403,1707064239535,-16043.8488797,0.0003879,10]
[313273404,1707064239546,-505.57440672,0.00038798,4]
[313273405,1707064239556,-1260.08950664,0.00038798,4]
[313273406,1707064239570,-1207.4376444,0.00038799,4]
[313273407,1707064239579,-714690.82004617,0.000388,3]
[313273408,1707064239593,-1190.73171,0.000388,3]
[313273409,1707064239611,-1319.04852,0.000388,3]
[313273410,1707064239625,-2966.26000985,0.000388,3]
[313273411,1707064239654,-41470.71130782,0.000388,3]
[313273423,1707064240313,-936.86679501,0.00025744,2]
[313273424,1707064240323,-21723.57554349,0.000388,3]
[313273425,1707064240334,-10335.7805087,0.000388,3]
[313273426,1707064240346,-4344.27119999,0.000388,3]
[313273427,1707064241051,-18715.54241625,0.000388,3]
[313273428,1707064241060,-30612.70331201,0.000388,4]
[313273429,1707064241069,-12672.46749453,0.00038864,20]
[313273430,1707064241105,-11037.81259715,0.00038864,20]
[313273509,1707064242564,-14452.71990832,0.00038864,20]
[313273510,1707064242583,-5347.94962657,0.0003889,10]
[313273511,1707064242594,-4022.05534833,0.000389,15]
[313273512,1707064242604,-404.27978998,0.0003898,2]
[313273513,1707064242618,-2048.01963368,0.00039,2]
[313273514,1707064242628,-979.97241271,0.00039,4]
[313273515,1707064242638,-150.0,0.00039189,2]
[313273516,1707064242648,-32407.18842522,0.00039249,20]
[313273517,1707064242662,-5755.81157478,0.00039249,20]
[313273518,1707064242671,-896.52,0.00039322,2]
[313273519,1707064242681,-336.62,0.0003933,2]
[313273520,1707064242692,-150.0,0.00039366,2]
[313273521,1707064242702,-4000.0,0.0003957,2]
[313273522,1707064242711,-17390.80665389,0.00039634,20]
[313273523,1707064242735,-20772.19334611,0.00039634,20]
[313273524,1707064242744,-5347.94962657,0.00039853,10]
[313273525,1707064242754,-733.09095357,0.00039859,4]
[313273526,1707064242764,-3810.59408401,0.00039863,4]
[313273527,1707064242773,-430.43087329,0.00039864,4]
[313273528,1707064242783,-1012.17986372,0.00039865,4]
[313273529,1707064242793,-150.0,0.00039898,2]
[313273530,1707064242802,-153.92326907,0.00039899,6]
[313273531,1707064242812,-542.27160509,0.000399,5]
[313273532,1707064242822,-151.4064887,0.000399,2]
[313273533,1707064242832,-428.85699353,0.00039958,30]
[313273534,1707064242842,-200.0,0.00039987,9]
[313273535,1707064242851,-85567.1940251,0.0003999,10]
[313273536,1707064242861,-105217.498015,0.0003999,5]
[313273537,1707064242870,-500.0,0.00039999,31]
[313273538,1707064242879,-264.44088027,0.00039999,31]
[313273539,1707064242889,-5487.50915205,0.0004,4]
[313273541,1707064242898,-2689.55318047,0.0004,4]
[313273543,1707064242907,-571.36387681,0.0004,4]
[313273544,1707064242916,-161.9394079,0.0004,2]
[313273545,1707064242926,-400.00050884,0.0004,120]
[313273546,1707064242935,-22117.68647422,0.0004,4]
[313273547,1707064242944,-2279.09360945,0.0004,4]
[313273548,1707064242953,-30070.25095901,0.0004,4]
[313273549,1707064242964,-5253.67531634,0.0004,4]
[313273550,1707064245590,-203.17376735,0.00038863,4]
[313273551,1707064245604,-277.35745716,0.00038863,4]
[313273552,1707064245617,-2110.23702683,0.0004,4]
[313273553,1707064245643,-270.45978453,0.0004,4]
[313273564,1707064247282,-1232.59825842,0.0004,4]
[313273578,1707064998136,150.0,0.00022296,2]
[313273579,1707065064292,155.0,0.00022296,2]
[313273580,1707065066288,150.0,0.0002229,2]
[313273581,1707065073768,535.04346075,0.00022296,2]
[313273582,1707065080333,221.31148748,0.00022296,2]
[313273583,1707065089769,269.68766148,0.00022296,2]
[313273584,1707065133154,150.0,0.00021838,2]
[313273585,1707065134448,150.0,0.00022386,2]
[313273586,1707065193781,182.04270309,0.00022364,2]
[313273587,1707065198756,150.0,0.00021833,2]
[313273588,1707065200022,159.91567417,0.00022381,2]
[313273590,1707065231780,171.43,0.00020392,2]
[313273592,1707065431752,-229.14462659,0.00022612,2]
[313273593,1707065431762,-159.37624852,0.00022612,2]
[313273594,1707065431774,-162.80158799,0.00022613,2]
[313273595,1707065431785,-155.0,0.00022613,2]
[313273596,1707065431795,-488.92621759,0.00022613,2]
[313273597,1707065431805,-668.46820905,0.00022613,2]
[313273598,1707065431814,-464.32234953,0.00022613,2]
[313273599,1707065431826,-362.1013399,0.00022613,2]
[313273600,1707065431863,-640.62848055,0.00022613,2]
[313273601,1707065432031,-587.67166474,0.00022613,2]
[313273686,1707065437795,-1197.93357264,0.00022613,2]
[313273687,1707065437850,-2210.58757029,0.00022613,2]
[313273688,1707065437860,-646.63739048,0.00022613,2]
[313273689,1707065437869,-1284.26263802,0.00022613,2]
[313273690,1707065437906,-3345.61753286,0.00022613,2]
[313273691,1707065437917,-12193.74197178,0.00022613,2]
[313273692,1707065437927,-155.0,0.00022613,2]
[313273693,1707065437936,-2327.88539827,0.00022614,2]
[313273694,1707065437946,-155.0,0.00022614,2]
[313273695,1707065437955,-1140.68860112,0.00022614,2]
[313273696,1707065437969,-283.83163888,0.00022614,2]
[313273697,1707065437979,-155.0,0.00022615,2]
[313273698,1707065437989,-191.56467231,0.00022615,2]
[313273699,1707065438000,-22691.8718427,0.00022615,2]
[313273700,1707065438011,-155.0,0.00022616,2]
[313273701,1707065438019,-1054.0465193,0.00022616,2]
[313273702,1707065438030,-1858.86108655,0.00022616,2]
[313273703,1707065438039,-1044.99592506,0.00022616,2]
[313273704,1707065438050,-155.5914355,0.0002262,2]
[313273705,1707065438061,-8620.9655,0.00022623,2]
[313273706,1707065438072,-150.0,0.00022719,2]
[313273707,1707065438081,-203.22520032,0.00022728,2]
[313273708,1707065438090,-203.22520032,0.00022729,2]
[313273709,1707065438100,-203.22520032,0.0002273,2]
[313273710,1707065438109,-171.43,0.00022941,2]
[313273711,1707065438118,-257.9,0.00023799,2]
[313273713,1707065438127,-257.9,0.00023936,2]
[313273715,1707065438137,-201.83380007,0.00024,2]
[313273717,1707065438147,-257.9,0.00024073,2]
[313273719,1707065438156,-257.9,0.0002421,2]
[313273721,1707065438165,-257.9,0.00024347,2]
[313273723,1707065438174,-257.9,0.00024484,2]
[313273725,1707065438182,-257.9,0.00024621,2]
[313273727,1707065438191,-257.9,0.00024758,2]
[313273729,1707065438200,-160.93428381,0.0002479,2]
[313273731,1707065438210,-280.54,0.00024829,2]
[313273733,1707065438219,-257.9,0.00024895,2]
[313273735,1707065438229,-227.9917251,0.00024903,2]
[313273736,1707065438238,-210.0,0.00024991,2]
[313273738,1707065438247,-1906.40505966,0.00025,2]
[313273741,1707065438257,-257.9,0.00025032,2]
[313273742,1707065438267,-200.0,0.00025099,2]
[313273744,1707065438277,-2000.0,0.00025122,2]
[313273747,1707065438287,-1329.48,0.00025157,2]
[313273749,1707065438297,-257.9,0.00025169,2]
[313273750,1707065438307,-1193.41,0.00025209,2]
[313273753,1707065438316,-2199.21,0.00025209,2]
[313273754,1707065438325,-257.9,0.00025306,2]
[313273756,1707065438336,-150.0,0.00025309,2]
[313273759,1707065438346,-1000.0,0.00025405,2]
[313273761,1707065438355,-257.9,0.00025443,2]
[313273763,1707065438364,-199.03,0.00025465,10]
[313273765,1707065438374,-163.93,0.00025473,2]
[313273767,1707065438383,-171.43,0.0002549,2]
[313273769,1707065438392,-166.94,0.0002549,2]
[313273770,1707065438401,-250.0,0.00025536,2]
[313273772,1707065438410,-190.15,0.00025566,2]
[313273775,1707065438421,-250.0,0.00025577,2]
[313273777,1707065438430,-257.9,0.0002558,2]
[313273779,1707065438438,-200.0,0.00025648,2]
[313273781,1707065438447,-257.9,0.00025717,2]
[313273783,1707065438457,-151.53,0.00025794,2]
[313273784,1707065438467,-182.3,0.00025818,2]
[313273786,1707065438476,-257.9,0.00025854,2]
[313273788,1707065438485,-257.9,0.00025991,2]
[313273790,1707065438494,-151.53503626,0.00026,2]
[313273792,1707065438503,-200.0,0.00026011,2]
[313273795,1707065438512,-257.9,0.00026128,2]
[313273796,1707065438521,-257.9,0.00026265,2]
[313273798,1707065438532,-3200.915251,0.00026365,2]
[313273801,1707065438542,-161.94812689,0.00026368,2]
[313273802,1707065438553,-257.9,0.00026402,2]
[313273804,1707065438562,-160.93428381,0.0002654,2]
[313273807,1707065438572,-3235.8,0.00026591,2]
[313273808,1707065438582,-250.0,0.00026592,2]
[313273811,1707065438592,-2834.9673,0.000267,2]
[313273812,1707065438601,-200.0,0.00026708,2]
[313273814,1707065438611,-182.3,0.00026732,2]
[313273816,1707065438620,-604.27,0.00026767,2]
[313273817,1707065438629,-3422.24954555,0.00026786,2]
[313273819,1707065438638,-23900.0,0.000268,2]
[313273821,1707065438647,-150.0,0.00026807,2]
[313273822,1707065438657,-604.27,0.0002684,2]
[313273824,1707065438666,-190.15,0.00026844,2]
[313273826,1707065438675,-15795.93074293,0.000269,2]
[313273828,1707065438685,-637.92549388,0.00026901,2]
[313273830,1707065438695,-862.04751412,0.00026905,2]
[313273832,1707065438704,-237.06306638,0.00026905,2]
[313273833,1707065438712,-604.27,0.00026914,2]
[313273835,1707065438722,-604.27,0.00026987,2]
[313273837,1707065438731,-500.0,0.00027,7]
[313273838,1707065438741,-604.27,0.00027061,2]
[313273840,1707065438751,-280.54,0.00027093,2]
[313273842,1707065438760,-200.0,0.00027129,120]
[313273844,1707065438769,-604.27,0.00027134,2]
[313273846,1707065438779,-604.27,0.00027207,2]
[313273848,1707065438788,-604.27,0.00027281,2]
[313273849,1707065438798,-604.27,0.00027354,2]
[313273851,1707065438807,-604.27,0.00027428,2]
[313273853,1707065438816,-604.27,0.00027501,2]
[313273855,1707065438825,-604.27,0.00027574,2]
[313273857,1707065438834,-182.3,0.00027645,2]
[313273858,1707065438843,-604.27,0.00027648,2]
[313273860,1707065438853,-604.27,0.00027721,2]
[313273861,1707065438862,-167.44,0.00027753,2]
[313273863,1707065438871,-604.27,0.00027795,2]
[313273864,1707065438880,-604.27,0.00027868,2]
[313273866,1707065438889,-604.27,0.00027941,2]
[313273867,1707065438898,-604.27,0.00028015,2]
[313273869,1707065438907,-171.43,0.00028039,2]
[313273870,1707065438916,-604.27,0.00028088,2]
[313273871,1707065438932,-190.15,0.00028122,2]
[313273872,1707065438941,-604.27,0.00028162,2]
[313273874,1707065438950,-160.93428381,0.00028291,2]
[313273875,1707065438961,-34695.2067,0.00028319,2]
[313273877,1707065438974,-288.74946755,0.00028419,2]
[313273879,1707065438983,-163.19,0.00028495,2]
[313273881,1707065438992,-174.86,0.00028556,2]
[313273882,1707065439001,-182.3,0.00028558,2]
[313273884,1707065439012,-1000.0,0.0002858,2]
[313273886,1707065439020,-329.34,0.00028789,2]
[313273887,1707065439031,-879.7,0.00028808,2]
[313273889,1707065439041,-4165.50826207,0.00029005,2]
[313273891,1707065439051,-222.50250077,0.00029005,4]
[313273893,1707065439060,-202.88847941,0.00029298,2]
[313273894,1707065439069,-155.0,0.00029298,2]
[313273896,1707065439079,-155.0,0.00029298,2]
[313273898,1707065439087,-243.34831327,0.00029298,2]
[313273899,1707065439096,-520.48264046,0.00029298,2]
[313273901,1707065439105,-327.56134791,0.00029298,2]
[313273903,1707065439113,-613.47942238,0.00029299,2]
[313273904,1707065439123,-27389.0,0.000293,2]
[313273906,1707065439132,-280.54,0.00029357,2]
[313273908,1707065439142,-190.15,0.00029401,2]
[313273909,1707065439151,-737.06,0.00029403,2]
[313273911,1707065439161,-150.45,0.0002952,2]
[313273913,1707065439170,-5892.68759118,0.00029557,4]
[313273915,1707065439179,-182.5353,0.000299,2]
[313273917,1707065439188,-1335.53,0.00029922,2]
[313273919,1707065439197,-1075.5,0.00029994,2]
[313273921,1707065439206,-356.89822391,0.0003,4]
[313273922,1707065439216,-155.0,0.0003,2]
[313273924,1707065439224,-9674.94675906,0.0003,2]
[313273926,1707065439234,-3602.25807355,0.0003,2]
[313273928,1707065439243,-500.0,0.0003,2]
[313273930,1707065439252,-160.93428381,0.00030041,2]
[313273931,1707065439262,-163.19,0.00030078,2]
[313273933,1707065439272,-150.0,0.00030137,2]
[313273935,1707065439282,-200.0,0.0003052,120]
[313273937,1707065439291,-171.43,0.00030588,2]
[313273939,1707065439300,-190.15,0.00030679,2]
[313273941,1707065439310,-150.0,0.00030714,2]
[313273943,1707065439319,-737.06,0.00030873,2]
[313273944,1707065439327,-150.0,0.00031291,2]
[313273946,1707065439337,-166.98,0.00031291,2]
[313273948,1707065439346,-156.57702525,0.00031492,2]
[313273949,1707065439355,-280.54,0.00031621,2]
[313273951,1707065439364,-180.0,0.00031644,2]
[313273953,1707065439374,-163.19,0.00031661,2]
[313273955,1707065439382,-1000.0,0.00031756,2]
[313273957,1707065439391,-160.93428381,0.00031792,2]
[313273958,1707065439401,-150.0,0.00031867,2]
[313273960,1707065439410,-737.06,0.00032343,2]
[313273973,1707065439543,-150.0,0.00032444,2]
[313273975,1707065439553,-150.0,0.00032935,7]
[313273977,1707065439563,-150.0,0.00033021,2]
[313273979,1707065439572,-163.19,0.00033244,2]
[313273981,1707065439586,-408.4,0.000335,2]
[313273983,1707065439595,-408.4,0.000335,2]
[313273984,1707065439603,-408.4,0.000335,2]
[313273986,1707065439613,-408.4,0.000335,2]
[313273988,1707065439622,-408.4,0.000335,2]
[313273990,1707065439631,-408.4,0.000335,2]
[313273992,1707065439640,-408.4,0.000335,2]
[313273994,1707065439649,-408.4,0.000335,2]
[313273996,1707065439658,-408.4,0.000335,2]
[313273997,1707065439667,-408.4,0.000335,2]
[313273999,1707065439676,-408.4,0.000335,2]
[313274001,1707065439686,-408.4,0.000335,2]
[313274003,1707065439695,-408.4,0.000335,2]
[313274005,1707065439706,-408.4,0.000335,2]
[313274007,1707065439715,-408.4,0.000335,2]
[313274009,1707065439726,-408.4,0.000335,2]
[313274011,1707065439735,-408.4,0.000335,2]
[313274013,1707065439744,-408.4,0.000335,2]
[313274015,1707065439753,-408.4,0.000335,2]
[313274016,1707065439761,-408.4,0.000335,2]
[313274017,1707065439770,-160.93428381,0.00033542,2]
[313274018,1707065439780,-622.17405158,0.0003359,2]
[313274019,1707065439789,-150.0,0.00033598,2]
[313274020,1707065439798,-737.06,0.00033813,2]
[313274021,1707065439807,-280.54,0.00033885,2]
[313274022,1707065439816,-200.0,0.00033911,120]
[313274023,1707065439826,-356.9984069,0.00034,2]
[313274024,1707065439834,-765.94522118,0.00034,4]
[313274025,1707065439844,-164.20728494,0.00034,4]
[313274026,1707065439853,-166.98,0.00034031,2]
[313274027,1707065439862,-150.0,0.00034175,2]
[313274029,1707065439872,-150.0,0.00034548,10]
[313274031,1707065439880,-150.0,0.00034751,2]
[313274033,1707065439889,-163.19,0.00034827,2]
[313274035,1707065439899,-764.74362636,0.00034892,7]
[313274037,1707065439908,-1000.0,0.00034931,2]
[313274039,1707065439917,-121261.64851,0.00034982,8]
[313274040,1707065439926,-753.14381819,0.00034992,4]
[313274043,1707065439936,-221.19263573,0.00034992,4]
[313274044,1707065439944,-155.0,0.00034992,4]
[313274046,1707065439954,-289.12587335,0.00034992,4]
[313274049,1707065439967,-155.0,0.00034992,4]
[313274051,1707065439976,-279.45015752,0.00034992,4]
[313274053,1707065439985,-407.75177551,0.00034992,4]
[313274055,1707065439994,-231.09751187,0.00034992,4]
[313274057,1707065440003,-4282.43045022,0.00034992,4]
[313274059,1707065440014,-225904.78354959,0.00034992,2]
[313274061,1707065440023,-155.7995592,0.00034993,4]
[313274063,1707065440033,-1054.25992044,0.00034993,4]
[313274064,1707065440044,-33439.08205099,0.00034993,4]
[313274066,1707065440054,-2254.65832964,0.00034996,4]
[313274069,1707065440063,-585.35631635,0.00034997,2]
[313274070,1707065440073,-8999.04607901,0.00034997,4]
[313274072,1707065440082,-155.0,0.00035,2]
[313274074,1707065440092,-155.0,0.00035,4]
[313274077,1707065440101,-450.12144164,0.00035,4]
[313274079,1707065440112,-221.77404607,0.00035,4]
[313274081,1707065440121,-390.3945362,0.00035,4]
[313274083,1707065440132,-347.55947271,0.00035,7]
[313274084,1707065440142,-1265.82043803,0.00035,4]
[313274086,1707065440151,-1329.48,0.0003522,2]
[313274088,1707065440161,-737.06,0.00035283,2]
[313274091,1707065440171,-160.93428381,0.00035293,2]
[313274093,1707065440180,-150.0,0.00035328,2]
[313274094,1707065440189,-800.0,0.00035616,2]
[313274097,1707065440199,-150.0,0.00035905,2]
[313274099,1707065440208,-156.67379422,0.00036,4]
[313274101,1707065440218,-280.54,0.00036149,2]
[313274102,1707065440227,-163.19,0.00036411,2]
[313274104,1707065440236,-2199.21,0.00036442,2]
[313274106,1707065440246,-150.0,0.00036482,2]
[313274108,1707065440256,-166.98,0.00036771,2]
[313274110,1707065440265,-764.7436263,0.00036782,8]
[313274112,1707065440274,-155.0,0.00036798,2]
[313274114,1707065440283,-515.16581829,0.000369,2]
[313274116,1707065440292,-800.0,0.00036934,2]
[313274118,1707065440301,-408.4,0.00037,3]
[313274120,1707065440311,-408.4,0.00037,3]
[313274122,1707065440319,-408.4,0.00037,3]
[313274124,1707065440329,-408.4,0.00037,3]
[313274126,1707065440338,-408.4,0.00037,3]
[313274128,1707065440347,-408.4,0.00037,3]
[313274130,1707065440356,-408.4,0.00037,3]
[313274132,1707065440365,-408.4,0.00037,3]
[313274134,1707065440375,-408.4,0.00037,3]
[313274136,1707065440384,-408.4,0.00037,3]
[313274138,1707065440393,-408.4,0.00037,3]
[313274140,1707065440402,-408.4,0.00037,3]
[313274142,1707065440411,-408.4,0.00037,3]
[313274145,1707065440420,-408.4,0.00037,3]
[313274147,1707065440430,-408.4,0.00037,3]
[313274149,1707065440440,-408.4,0.00037,3]
[313274151,1707065440449,-408.4,0.00037,3]
[313274153,1707065440458,-408.4,0.00037,3]
[313274155,1707065440467,-408.4,0.00037,3]
[313274156,1707065440476,-408.4,0.00037,3]
[313274158,1707065440485,-160.93428381,0.00037043,2]
[313274160,1707065440494,-150.0,0.00037059,2]
[313274162,1707065440503,-200.0,0.00037302,120]
[313274165,1707065440513,-150.0,0.00037635,2]
[313274166,1707065440522,-200.0,0.000379,13]